[Event "Late-Titled-Tuesday-Blitz-March-26-2024"]
[Site "Chess.com"]
[Date "2024.03.26"]
[Round "1"]
[White "Klendi"]
[Black "VitaliyBernadskiy"]
[Result "0-1"]
[WhiteElo "2476"]
[BlackElo "2897"]
[TimeControl "180+1"]
[EndTime "14:05:04 PDT"]
[Termination "VitaliyBernadskiy won by resignation"]

1. e4 {[%clk 0:02:59.2]} 1... g6 {[%clk 0:02:59.8]} 2. d4 {[%clk 0:02:59.2]}
2... Bg7 {[%clk 0:02:59.9]} 3. Nf3 {[%clk 0:02:59.4]} 3... d6 {[%clk 0:02:59.8]}
4. Be2 {[%clk 0:02:58.8]} 4... Nf6 {[%clk 0:02:59.5]} 5. Nc3 {[%clk 0:02:58.1]}
5... O-O {[%clk 0:02:59.7]} 6. O-O {[%clk 0:02:58]} 6... c6 {[%clk 0:02:59.8]}
7. e5 {[%clk 0:02:56]} 7... Nfd7 {[%clk 0:02:58.2]} 8. Bf4 {[%clk 0:02:54.4]}
8... Nb6 {[%clk 0:02:57.7]} 9. Qd2 {[%clk 0:02:48.1]} 9... Bg4 {[%clk
0:02:54.8]} 10. Rad1 {[%clk 0:02:37]} 10... Na6 {[%clk 0:02:46.8]} 11. a3 {[%clk
0:02:34.1]} 11... Nc7 {[%clk 0:02:17.9]} 12. h3 {[%clk 0:02:29.4]} 12... Bxf3
{[%clk 0:02:13.6]} 13. Bxf3 {[%clk 0:02:29.4]} 13... dxe5 {[%clk 0:02:13.8]} 14.
dxe5 {[%clk 0:02:29.1]} 14... Qxd2 {[%clk 0:02:13.4]} 15. Rxd2 {[%clk
0:02:29.8]} 15... Ne6 {[%clk 0:02:12.5]} 16. Bg3 {[%clk 0:02:26.2]} 16... Rfd8
{[%clk 0:02:05.1]} 17. Rxd8+ {[%clk 0:02:15.8]} 17... Rxd8 {[%clk 0:02:04.2]}
18. Ne4 {[%clk 0:02:11.1]} 18... Nc4 {[%clk 0:01:59.9]} 19. a4 {[%clk
0:02:07.2]} 19... Bxe5 {[%clk 0:01:50]} 20. Be2 {[%clk 0:02:04.9]} 20... Rd4
{[%clk 0:01:39.3]} 21. Bxc4 {[%clk 0:01:47.9]} 21... Rxc4 {[%clk 0:01:38.8]} 22.
Bxe5 {[%clk 0:01:35.8]} 22... Rxe4 {[%clk 0:01:38]} 23. Bc3 {[%clk 0:01:36.5]}
23... Nf4 {[%clk 0:01:32.7]} 24. Kh2 {[%clk 0:01:28]} 24... Rxa4 {[%clk
0:01:27.1]} 25. Rd1 {[%clk 0:01:23.3]} 25... Nd5 {[%clk 0:01:26.9]} 26. Be5
{[%clk 0:01:23.1]} 26... f6 {[%clk 0:01:26.6]} 27. Bg3 {[%clk 0:01:22.9]} 27...
Rc4 {[%clk 0:01:23.2]} 28. Rd2 {[%clk 0:01:22.2]} 28... Kf7 {[%clk 0:01:21.8]}
29. b3 {[%clk 0:01:22.2]} 29... Rc3 {[%clk 0:01:21.7]} 30. f3 {[%clk 0:01:22.9]}
30... Ne3 {[%clk 0:01:14.2]} 31. Kg1 {[%clk 0:01:19.4]} 31... Rxc2 {[%clk
0:01:12.6]} 32. Rd7 {[%clk 0:01:17.7]} 32... Rxg2+ {[%clk 0:01:12.2]} 33. Kh1
{[%clk 0:01:18.2]} 33... Rxg3 {[%clk 0:01:12.2]} 34. Rxb7 {[%clk 0:01:19.1]}
34... Rxh3+ {[%clk 0:01:12]} 0-1

[Event "Late-Titled-Tuesday-Blitz-March-26-2024"]
[Site "Chess.com"]
[Date "2024.03.26"]
[Round "1"]
[White "BillieKimbah"]
[Black "b_6"]
[Result "1-0"]
[WhiteElo "2968"]
[BlackElo "2506"]
[TimeControl "180+1"]
[EndTime "14:05:06 PDT"]
[Termination "BillieKimbah won by resignation"]

1. d4 {[%clk 0:02:55.8]} 1... Nf6 {[%clk 0:02:59.7]} 2. Nf3 {[%clk 0:02:54.4]}
2... g6 {[%clk 0:02:59.7]} 3. Nbd2 {[%clk 0:02:53]} 3... Bg7 {[%clk 0:02:51.8]}
4. e4 {[%clk 0:02:52.7]} 4... d6 {[%clk 0:02:51.9]} 5. Bd3 {[%clk 0:02:52.6]}
5... O-O {[%clk 0:02:50.6]} 6. O-O {[%clk 0:02:52.4]} 6... Nc6 {[%clk
0:02:48.2]} 7. c3 {[%clk 0:02:52.2]} 7... e5 {[%clk 0:02:48]} 8. dxe5 {[%clk
0:02:50.3]} 8... dxe5 {[%clk 0:02:43.9]} 9. Nc4 {[%clk 0:02:50]} 9... Bg4 {[%clk
0:02:36.9]} 10. h3 {[%clk 0:02:49]} 10... Bxf3 {[%clk 0:02:35.4]} 11. Qxf3
{[%clk 0:02:49.9]} 11... Nd7 {[%clk 0:02:27.2]} 12. Rd1 {[%clk 0:02:47.6]} 12...
Qe7 {[%clk 0:02:26.2]} 13. b4 {[%clk 0:02:44.5]} 13... Qe6 {[%clk 0:02:08.4]}
14. Ne3 {[%clk 0:02:43.7]} 14... Nb6 {[%clk 0:01:51.2]} 15. Nd5 {[%clk
0:02:42.9]} 15... Rac8 {[%clk 0:01:45.1]} 16. a4 {[%clk 0:02:41.4]} 16... Rfe8
{[%clk 0:01:33.6]} 17. a5 {[%clk 0:02:36.3]} 17... Nxd5 {[%clk 0:01:33]} 18.
exd5 {[%clk 0:02:36.2]} 18... e4 {[%clk 0:01:33.4]} 19. dxe6 {[%clk 0:02:32.1]}
19... exf3 {[%clk 0:01:33.3]} 20. exf7+ {[%clk 0:02:28.2]} 20... Kxf7 {[%clk
0:01:33.3]} 21. Bc4+ {[%clk 0:02:22.3]} 21... Kf8 {[%clk 0:01:28.2]} 22. Be3
{[%clk 0:02:20.5]} 22... Bxc3 {[%clk 0:01:17]} 23. Rac1 {[%clk 0:02:19.6]} 23...
Bxb4 {[%clk 0:01:12.8]} 24. Bh6+ {[%clk 0:02:03.3]} 24... Ke7 {[%clk 0:01:11.7]}
25. Bg5+ {[%clk 0:02:04.2]} 25... Kf8 {[%clk 0:01:09]} 26. Rd7 {[%clk
0:02:05.1]} 26... Re1+ {[%clk 0:00:53]} 27. Rxe1 {[%clk 0:02:02.1]} 27... Bxe1
{[%clk 0:00:53.9]} 28. Rxh7 {[%clk 0:01:59.3]} 28... Bc3 {[%clk 0:00:43.6]} 29.
Be6 {[%clk 0:01:51.7]} 29... Re8 {[%clk 0:00:30.2]} 30. Bh6+ {[%clk 0:01:50.8]}
1-0

[Event "Late-Titled-Tuesday-Blitz-March-26-2024"]
[Site "Chess.com"]
[Date "2024.03.26"]
[Round "1"]
[White "titomagno_64"]
[Black "arenal72"]
[Result "0-1"]
[WhiteElo "2301"]
[BlackElo "2619"]
[TimeControl "180+1"]
[EndTime "14:05:09 PDT"]
[Termination "arenal72 won by resignation"]

1. d4 {[%clk 0:03:00.9]} 1... d6 {[%clk 0:02:58.9]} 2. Nf3 {[%clk 0:03:00.2]}
2... g6 {[%clk 0:02:58]} 3. g3 {[%clk 0:03:00.2]} 3... Bg7 {[%clk 0:02:58]} 4.
Bg2 {[%clk 0:03:00.4]} 4... Nf6 {[%clk 0:02:58.3]} 5. O-O {[%clk 0:03:01.3]}
5... O-O {[%clk 0:02:58.3]} 6. b3 {[%clk 0:03:02]} 6... c5 {[%clk 0:02:57.8]} 7.
Bb2 {[%clk 0:03:02.7]} 7... cxd4 {[%clk 0:02:57.7]} 8. Nxd4 {[%clk 0:02:59.6]}
8... a6 {[%clk 0:02:57]} 9. a4 {[%clk 0:02:59.1]} 9... Qc7 {[%clk 0:02:56.8]}
10. Na3 {[%clk 0:02:57.8]} 10... Bd7 {[%clk 0:02:55.1]} 11. Rc1 {[%clk
0:02:56.8]} 11... Nc6 {[%clk 0:02:54.8]} 12. h3 {[%clk 0:02:50.7]} 12... Rac8
{[%clk 0:02:53.2]} 13. Nc4 {[%clk 0:02:49.9]} 13... Rfd8 {[%clk 0:02:49.3]} 14.
Qd2 {[%clk 0:02:35]} 14... d5 {[%clk 0:02:25.4]} 15. Ne3 {[%clk 0:02:25.5]}
15... e5 {[%clk 0:02:24]} 16. Nxc6 {[%clk 0:02:20.8]} 16... Bxc6 {[%clk
0:02:21.2]} 17. Rfd1 {[%clk 0:02:07.8]} 17... d4 {[%clk 0:02:17.8]} 18. Nc4
{[%clk 0:02:03.6]} 18... Bxg2 {[%clk 0:02:14.1]} 19. Kxg2 {[%clk 0:02:04.5]}
19... b5 {[%clk 0:02:12.8]} 20. axb5 {[%clk 0:02:01.8]} 20... axb5 {[%clk
0:02:13.7]} 21. Na3 {[%clk 0:01:55.8]} 21... Bf8 {[%clk 0:02:11.1]} 22. Kh2
{[%clk 0:01:48.1]} 22... Ne4 {[%clk 0:02:05.9]} 23. Qe1 {[%clk 0:01:47.7]} 23...
Qb7 {[%clk 0:01:45.6]} 24. e3 {[%clk 0:01:43.3]} 24... Ng5 {[%clk 0:01:36.6]}
25. Qh1 {[%clk 0:01:26]} 25... Nf3+ {[%clk 0:01:26.7]} 26. Kg2 {[%clk
0:01:26.3]} 26... dxe3 {[%clk 0:01:19]} 27. fxe3 {[%clk 0:01:17.6]} 27... Bxa3
{[%clk 0:01:16.3]} 28. Bxa3 {[%clk 0:01:12.3]} 28... Rxd1 {[%clk 0:01:13.2]} 29.
Qxd1 {[%clk 0:01:08.1]} 29... Nh4+ {[%clk 0:01:09.2]} 30. Kf1 {[%clk 0:01:03.6]}
30... Qg2+ {[%clk 0:01:09]} 0-1

[Event "Late-Titled-Tuesday-Blitz-March-26-2024"]
[Site "Chess.com"]
[Date "2024.03.26"]
[Round "1"]
[White "MaiqMaster"]
[Black "EgorYakovlev"]
[Result "0-1"]
[WhiteElo "2385"]
[BlackElo "2702"]
[TimeControl "180+1"]
[EndTime "14:05:10 PDT"]
[Termination "EgorYakovlev won by resignation"]

1. e4 {[%clk 0:03:00.9]} 1... c5 {[%clk 0:02:59.4]} 2. Nc3 {[%clk 0:03:00.4]}
2... a6 {[%clk 0:02:59.3]} 3. g3 {[%clk 0:02:54.3]} 3... b5 {[%clk 0:02:59.3]}
4. Bg2 {[%clk 0:02:54.4]} 4... Bb7 {[%clk 0:03:00]} 5. Nge2 {[%clk 0:02:51.4]}
5... e6 {[%clk 0:03:00.6]} 6. d4 {[%clk 0:02:44.6]} 6... cxd4 {[%clk 0:02:51.4]}
7. Nxd4 {[%clk 0:02:45.5]} 7... d6 {[%clk 0:02:51.1]} 8. O-O {[%clk 0:02:44.5]}
8... Nf6 {[%clk 0:02:51.7]} 9. Re1 {[%clk 0:02:41.9]} 9... Nbd7 {[%clk
0:02:52.1]} 10. a3 {[%clk 0:02:41.5]} 10... Qc7 {[%clk 0:02:52.5]} 11. Be3
{[%clk 0:02:33.2]} 11... Ne5 {[%clk 0:02:51.4]} 12. Qc1 {[%clk 0:02:04.3]} 12...
Neg4 {[%clk 0:02:37.3]} 13. Bg5 {[%clk 0:01:58.6]} 13... Qb6 {[%clk 0:02:36.7]}
14. Qd2 {[%clk 0:01:47.1]} 14... h6 {[%clk 0:02:36.7]} 15. Bxf6 {[%clk
0:01:45.4]} 15... Nxf6 {[%clk 0:02:36.8]} 16. Rad1 {[%clk 0:01:45.1]} 16... Rd8
{[%clk 0:02:35]} 17. Nb3 {[%clk 0:01:38.9]} 17... Be7 {[%clk 0:02:34.4]} 18. h3
{[%clk 0:01:33.1]} 18... O-O {[%clk 0:02:33.4]} 19. Qe3 {[%clk 0:01:31.4]} 19...
Qc7 {[%clk 0:02:23.6]} 20. Rd2 {[%clk 0:01:26.9]} 20... Nd7 {[%clk 0:02:23.1]}
21. Red1 {[%clk 0:01:26.2]} 21... Ne5 {[%clk 0:02:23.3]} 22. Bf1 {[%clk
0:01:25.6]} 22... Nc4 {[%clk 0:02:11.6]} 23. Bxc4 {[%clk 0:01:25.4]} 23... bxc4
{[%clk 0:02:12.5]} 24. Nd4 {[%clk 0:01:25.7]} 24... Bf6 {[%clk 0:02:06]} 25.
Nde2 {[%clk 0:01:14.9]} 25... Rfe8 {[%clk 0:02:04.6]} 26. f4 {[%clk 0:01:09.4]}
26... d5 {[%clk 0:02:00.1]} 27. e5 {[%clk 0:01:06.7]} 27... Be7 {[%clk
0:02:00.7]} 28. Kh2 {[%clk 0:01:04.7]} 28... f6 {[%clk 0:02:00.6]} 29. exf6
{[%clk 0:01:02.6]} 29... Bxf6 {[%clk 0:02:00.4]} 30. Qf2 {[%clk 0:00:48.1]}
30... Qf7 {[%clk 0:01:58]} 31. Nd4 {[%clk 0:00:41.8]} 31... e5 {[%clk
0:01:53.5]} 32. fxe5 {[%clk 0:00:42.7]} 32... Rxe5 {[%clk 0:01:53.2]} 33. Nf3
{[%clk 0:00:40.3]} 33... Rf5 {[%clk 0:01:52.4]} 34. Qe2 {[%clk 0:00:33.8]} 34...
Bxc3 {[%clk 0:01:51.8]} 35. bxc3 {[%clk 0:00:31.2]} 35... Rxf3 {[%clk 0:01:52]}
0-1

[Event "Late-Titled-Tuesday-Blitz-March-26-2024"]
[Site "Chess.com"]
[Date "2024.03.26"]
[Round "1"]
[White "olga-belka"]
[Black "marcodobrikov"]
[Result "1-0"]
[WhiteElo "2353"]
[BlackElo "2624"]
[TimeControl "180+1"]
[EndTime "14:05:11 PDT"]
[Termination "olga-belka won by checkmate"]

1. e4 {[%clk 0:02:59]} 1... e5 {[%clk 0:02:56.3]} 2. d4 {[%clk 0:02:58.3]} 2...
exd4 {[%clk 0:02:55.8]} 3. Qxd4 {[%clk 0:02:58]} 3... Nc6 {[%clk 0:02:55.5]} 4.
Qc4 {[%clk 0:02:57.4]} 4... Nf6 {[%clk 0:02:50.3]} 5. Nc3 {[%clk 0:02:57]} 5...
Bb4 {[%clk 0:02:49.1]} 6. Bd2 {[%clk 0:02:55.8]} 6... O-O {[%clk 0:02:49.3]} 7.
O-O-O {[%clk 0:02:54.9]} 7... d6 {[%clk 0:02:49.5]} 8. a3 {[%clk 0:02:51.6]}
8... Be6 {[%clk 0:02:46.6]} 9. Qe2 {[%clk 0:02:49.6]} 9... Ba5 {[%clk
0:02:45.8]} 10. f3 {[%clk 0:02:47.6]} 10... a6 {[%clk 0:02:41.8]} 11. g4 {[%clk
0:02:44.9]} 11... b5 {[%clk 0:02:42.1]} 12. g5 {[%clk 0:02:44.4]} 12... Nd7
{[%clk 0:02:42]} 13. Nd5 {[%clk 0:02:43.2]} 13... Bxd2+ {[%clk 0:02:40.7]} 14.
Qxd2 {[%clk 0:02:42.8]} 14... Bxd5 {[%clk 0:02:35.8]} 15. exd5 {[%clk
0:02:42.5]} 15... Nce5 {[%clk 0:02:32.8]} 16. f4 {[%clk 0:02:39]} 16... Nc4
{[%clk 0:02:31.9]} 17. Qd4 {[%clk 0:02:37.7]} 17... Ndb6 {[%clk 0:02:18.1]} 18.
Nf3 {[%clk 0:02:34.1]} 18... Re8 {[%clk 0:02:17.4]} 19. Bd3 {[%clk 0:02:30.1]}
19... Ne3 {[%clk 0:02:13.6]} 20. Rde1 {[%clk 0:02:27.9]} 20... Nexd5 {[%clk
0:02:13.5]} 21. Be4 {[%clk 0:02:00.3]} 21... c6 {[%clk 0:02:02.2]} 22. f5 {[%clk
0:01:53.8]} 22... a5 {[%clk 0:01:55.8]} 23. h4 {[%clk 0:01:48.1]} 23... b4
{[%clk 0:01:55.8]} 24. a4 {[%clk 0:01:47.2]} 24... Nxa4 {[%clk 0:01:42.5]} 25.
h5 {[%clk 0:01:46.3]} 25... Nc5 {[%clk 0:01:39.4]} 26. h6 {[%clk 0:01:38.3]}
26... f6 {[%clk 0:01:33.7]} 27. Bxd5+ {[%clk 0:01:33.8]} 27... cxd5 {[%clk
0:01:33.4]} 28. Qxd5+ {[%clk 0:01:32.1]} 28... Kf8 {[%clk 0:01:33]} 29. hxg7+
{[%clk 0:01:30.1]} 29... Kxg7 {[%clk 0:01:33.5]} 30. gxf6+ {[%clk 0:01:27.8]}
30... Kf8 {[%clk 0:01:26.6]} 31. Rxh7 {[%clk 0:01:21.3]} 31... Rxe1+ {[%clk
0:01:25.6]} 32. Nxe1 {[%clk 0:01:20.1]} 32... Nb3+ {[%clk 0:01:19.3]} 33. Kd1
{[%clk 0:01:13.9]} 33... Qxf6 {[%clk 0:01:13.7]} 34. Qxa8+ {[%clk 0:01:12.7]}
34... Qd8 {[%clk 0:01:14.6]} 35. Qxd8# {[%clk 0:01:12.1]} 1-0

[Event "Late-Titled-Tuesday-Blitz-March-26-2024"]
[Site "Chess.com"]
[Date "2024.03.26"]
[Round "1"]
[White "Supelyel"]
[Black "aa175"]
[Result "1/2-1/2"]
[WhiteElo "2408"]
[BlackElo "2719"]
[TimeControl "180+1"]
[EndTime "14:05:13 PDT"]
[Termination "Game drawn by agreement"]

1. c4 {[%clk 0:02:58.4]} 1... c6 {[%clk 0:02:56.8]} 2. Nc3 {[%clk 0:02:54.7]}
2... d5 {[%clk 0:02:57.3]} 3. cxd5 {[%clk 0:02:54.3]} 3... cxd5 {[%clk 0:02:58]}
4. d4 {[%clk 0:02:54.9]} 4... Nf6 {[%clk 0:02:56.8]} 5. Bf4 {[%clk 0:02:54.9]}
5... Nc6 {[%clk 0:02:57.2]} 6. e3 {[%clk 0:02:55.2]} 6... Bf5 {[%clk 0:02:56.2]}
7. h3 {[%clk 0:02:54.4]} 7... e6 {[%clk 0:02:56.3]} 8. Bd3 {[%clk 0:02:52.4]}
8... Bxd3 {[%clk 0:02:55.2]} 9. Qxd3 {[%clk 0:02:52.4]} 9... Bd6 {[%clk
0:02:56]} 10. Bxd6 {[%clk 0:02:52.2]} 10... Qxd6 {[%clk 0:02:56.7]} 11. Nf3
{[%clk 0:02:52.7]} 11... O-O {[%clk 0:02:56.8]} 12. O-O {[%clk 0:02:52.7]} 12...
Rfc8 {[%clk 0:02:57.2]} 13. a3 {[%clk 0:02:52.3]} 13... a6 {[%clk 0:02:57.9]}
14. b4 {[%clk 0:02:52.1]} 14... b5 {[%clk 0:02:58.1]} 15. Rfc1 {[%clk
0:02:50.4]} 15... Rc7 {[%clk 0:02:58.2]} 16. Qd2 {[%clk 0:02:48.1]} 16... Rac8
{[%clk 0:02:58.7]} 17. Ne1 {[%clk 0:02:46.1]} 17... Nb8 {[%clk 0:02:54.7]} 18.
Nd3 {[%clk 0:02:43.3]} 18... Nbd7 {[%clk 0:02:55.2]} 19. Nc5 {[%clk 0:02:34.8]}
19... Nb6 {[%clk 0:02:55.3]} 20. a4 {[%clk 0:02:26.1]} 20... Nc4 {[%clk
0:02:54]} 21. Qe2 {[%clk 0:02:14.6]} 21... Qc6 {[%clk 0:02:35.9]} 22. axb5
{[%clk 0:02:07.9]} 22... axb5 {[%clk 0:02:36.8]} 23. Ra6 {[%clk 0:02:07.5]}
23... Qe8 {[%clk 0:02:35.8]} 24. Rca1 {[%clk 0:02:08.1]} 24... h6 {[%clk
0:02:33.9]} 25. R1a2 {[%clk 0:01:58]} 25... e5 {[%clk 0:02:34]} 26. Rxf6 {[%clk
0:01:24.9]} 26... gxf6 {[%clk 0:02:29.8]} 27. Nxd5 {[%clk 0:01:23.5]} 27... Rc6
{[%clk 0:02:22.5]} 28. Ra7 {[%clk 0:01:23]} 28... exd4 {[%clk 0:02:16.9]} 29.
Qg4+ {[%clk 0:01:05.8]} 29... Kh8 {[%clk 0:02:10.5]} 30. Qxd4 {[%clk 0:00:59.4]}
30... Qe5 {[%clk 0:02:04.7]} 31. Ne7 {[%clk 0:00:45.9]} 31... Rxc5 {[%clk
0:01:48.9]} 32. bxc5 {[%clk 0:00:42]} 32... Re8 {[%clk 0:01:36]} 33. Qxe5 {[%clk
0:00:35.3]} 1/2-1/2

[Event "Late-Titled-Tuesday-Blitz-March-26-2024"]
[Site "Chess.com"]
[Date "2024.03.26"]
[Round "1"]
[White "GMG"]
[Black "wild3000"]
[Result "1-0"]
[WhiteElo "2788"]
[BlackElo "2425"]
[TimeControl "180+1"]
[EndTime "14:05:15 PDT"]
[Termination "GMG won by resignation"]

1. d4 {[%clk 0:03:00.9]} 1... d5 {[%clk 0:02:59.9]} 2. c4 {[%clk 0:03:00.5]}
2... e6 {[%clk 0:02:59.9]} 3. Nf3 {[%clk 0:03:00.8]} 3... Nf6 {[%clk 0:02:59.9]}
4. Nc3 {[%clk 0:03:01.1]} 4... c5 {[%clk 0:02:59]} 5. e3 {[%clk 0:03:00.1]} 5...
Nc6 {[%clk 0:02:58.2]} 6. a3 {[%clk 0:02:57.8]} 6... cxd4 {[%clk 0:02:52.9]} 7.
exd4 {[%clk 0:02:57.7]} 7... Be7 {[%clk 0:02:48.8]} 8. Bd3 {[%clk 0:02:53.6]}
8... dxc4 {[%clk 0:02:42.9]} 9. Bxc4 {[%clk 0:02:54.5]} 9... O-O {[%clk
0:02:42.5]} 10. O-O {[%clk 0:02:52.8]} 10... a6 {[%clk 0:02:41.4]} 11. Re1
{[%clk 0:02:46.5]} 11... b5 {[%clk 0:02:40.3]} 12. Ba2 {[%clk 0:02:47.1]} 12...
Bb7 {[%clk 0:02:40.1]} 13. d5 {[%clk 0:02:35.5]} 13... exd5 {[%clk 0:02:36.8]}
14. Nxd5 {[%clk 0:02:36.4]} 14... Nxd5 {[%clk 0:02:32.1]} 15. Bxd5 {[%clk
0:02:37.3]} 15... Bf6 {[%clk 0:02:27.4]} 16. Bf4 {[%clk 0:02:11.5]} 16... Na5
{[%clk 0:02:18.3]} 17. Bxb7 {[%clk 0:02:09.4]} 17... Nxb7 {[%clk 0:02:16.3]} 18.
Be5 {[%clk 0:02:04.2]} 18... Na5 {[%clk 0:02:01.2]} 19. Qxd8 {[%clk 0:01:48.8]}
19... Bxd8 {[%clk 0:01:57.4]} 20. Bd6 {[%clk 0:01:46.8]} 20... Nb3 {[%clk
0:01:52.6]} 21. Bxf8 {[%clk 0:01:39.6]} 21... Nxa1 {[%clk 0:01:51]} 22. Re8
{[%clk 0:01:39.7]} 22... f6 {[%clk 0:01:43.4]} 23. Be7+ {[%clk 0:01:38.9]} 23...
Kf7 {[%clk 0:01:43]} 24. Rxd8 {[%clk 0:01:39.3]} 24... Ra7 {[%clk 0:01:43.4]}
25. Bc5 {[%clk 0:01:35.5]} 25... Rc7 {[%clk 0:01:40.8]} 26. b4 {[%clk
0:01:35.7]} 26... Nc2 {[%clk 0:01:41.1]} 27. Rd3 {[%clk 0:01:31.8]} 27... a5
{[%clk 0:01:40.5]} 28. Kf1 {[%clk 0:01:24.1]} 28... g5 {[%clk 0:01:25]} 29. Rc3
{[%clk 0:01:17]} 29... axb4 {[%clk 0:01:19.7]} 30. axb4 {[%clk 0:01:15.3]} 30...
Na1 {[%clk 0:01:13.7]} 31. Nd4 {[%clk 0:01:09.1]} 31... Rd7 {[%clk 0:01:11.1]}
32. Rc1 {[%clk 0:01:08.3]} 1-0

[Event "Late-Titled-Tuesday-Blitz-March-26-2024"]
[Site "Chess.com"]
[Date "2024.03.26"]
[Round "1"]
[White "GMJustin"]
[Black "Meri-Arabidze"]
[Result "0-1"]
[WhiteElo "2368"]
[BlackElo "2677"]
[TimeControl "180+1"]
[EndTime "14:05:15 PDT"]
[Termination "Meri-Arabidze won by resignation"]

1. e4 {[%clk 0:02:28.7]} 1... c5 {[%clk 0:02:59]} 2. Nf3 {[%clk 0:02:27.9]} 2...
e6 {[%clk 0:02:59.4]} 3. d4 {[%clk 0:02:27.3]} 3... cxd4 {[%clk 0:03:00.3]} 4.
Nxd4 {[%clk 0:02:27.3]} 4... Nc6 {[%clk 0:03:00.6]} 5. Nc3 {[%clk 0:02:14.1]}
5... a6 {[%clk 0:02:59.9]} 6. Nxc6 {[%clk 0:02:07.8]} 6... bxc6 {[%clk
0:02:59.9]} 7. Qd3 {[%clk 0:02:06.8]} 7... d5 {[%clk 0:02:59.6]} 8. Bd2 {[%clk
0:02:04.3]} 8... Nf6 {[%clk 0:02:57.4]} 9. O-O-O {[%clk 0:02:00.7]} 9... Be7
{[%clk 0:02:54.8]} 10. Qg3 {[%clk 0:01:55.9]} 10... O-O {[%clk 0:02:54.8]} 11.
Bh6 {[%clk 0:01:51.6]} 11... Ne8 {[%clk 0:02:54.8]} 12. Bf4 {[%clk 0:01:33.5]}
12... Kh8 {[%clk 0:02:37.6]} 13. Bd3 {[%clk 0:01:30.5]} 13... Nd6 {[%clk
0:02:30.7]} 14. h4 {[%clk 0:01:17.1]} 14... d4 {[%clk 0:02:21.8]} 15. e5 {[%clk
0:01:01.3]} 15... Nf5 {[%clk 0:02:20]} 16. Bxf5 {[%clk 0:00:57.4]} 16... exf5
{[%clk 0:02:20.9]} 17. Bg5 {[%clk 0:00:48.1]} 17... c5 {[%clk 0:02:13.5]} 18.
Bxe7 {[%clk 0:00:40.4]} 18... Qxe7 {[%clk 0:02:14.4]} 19. Nd5 {[%clk 0:00:40.1]}
19... Qb7 {[%clk 0:02:11.4]} 20. Nf4 {[%clk 0:00:31.7]} 20... Be6 {[%clk
0:02:04.4]} 21. b3 {[%clk 0:00:22.6]} 21... a5 {[%clk 0:02:04.1]} 22. h5 {[%clk
0:00:19.6]} 22... h6 {[%clk 0:02:04.2]} 23. Qf3 {[%clk 0:00:12.7]} 23... Qb4
{[%clk 0:01:59.6]} 24. Nd5 {[%clk 0:00:07]} 24... Qa3+ {[%clk 0:01:56.9]} 25.
Kb1 {[%clk 0:00:07]} 25... a4 {[%clk 0:01:55.6]} 26. Nc7 {[%clk 0:00:01.6]}
26... axb3 {[%clk 0:01:51.2]} 0-1

[Event "Late-Titled-Tuesday-Blitz-March-26-2024"]
[Site "Chess.com"]
[Date "2024.03.26"]
[Round "1"]
[White "Eloist"]
[Black "ckgchess"]
[Result "0-1"]
[WhiteElo "2485"]
[BlackElo "2907"]
[TimeControl "180+1"]
[EndTime "14:05:23 PDT"]
[Termination "ckgchess won on time"]

1. e4 {[%clk 0:02:54.8]} 1... c5 {[%clk 0:03:00.3]} 2. Nf3 {[%clk 0:02:54.4]}
2... d6 {[%clk 0:03:00.9]} 3. Bb5+ {[%clk 0:02:53.5]} 3... Nd7 {[%clk
0:03:00.9]} 4. O-O {[%clk 0:02:52.7]} 4... a6 {[%clk 0:03:00.9]} 5. Bd3 {[%clk
0:02:51.7]} 5... e6 {[%clk 0:03:00.4]} 6. Re1 {[%clk 0:02:51]} 6... g5 {[%clk
0:03:00.5]} 7. h3 {[%clk 0:02:33.7]} 7... h5 {[%clk 0:03:00.3]} 8. Bf1 {[%clk
0:02:24.9]} 8... g4 {[%clk 0:03:00.2]} 9. Nh2 {[%clk 0:02:18.8]} 9... gxh3
{[%clk 0:02:59.1]} 10. g3 {[%clk 0:02:15.3]} 10... h4 {[%clk 0:02:52.8]} 11. g4
{[%clk 0:02:14.8]} 11... Bh6 {[%clk 0:02:51.8]} 12. Bxh3 {[%clk 0:02:10.1]}
12... Ne7 {[%clk 0:02:52]} 13. d3 {[%clk 0:01:56.2]} 13... Bxc1 {[%clk
0:02:40.2]} 14. Qxc1 {[%clk 0:01:54.5]} 14... Ng6 {[%clk 0:02:40.8]} 15. Nc3
{[%clk 0:01:40.8]} 15... Qf6 {[%clk 0:02:29.1]} 16. Ne2 {[%clk 0:01:33.8]} 16...
e5 {[%clk 0:02:24.6]} 17. g5 {[%clk 0:01:23.3]} 17... Qe7 {[%clk 0:02:22.9]} 18.
Ng4 {[%clk 0:01:07.1]} 18... b6 {[%clk 0:02:12.6]} 19. Kh2 {[%clk 0:00:53.5]}
19... Bb7 {[%clk 0:02:12.7]} 20. Rg1 {[%clk 0:00:43.3]} 20... O-O-O {[%clk
0:02:11.8]} 21. Nf6 {[%clk 0:00:40.6]} 21... Bc6 {[%clk 0:02:12.4]} 22. b4
{[%clk 0:00:24.7]} 22... Kb7 {[%clk 0:02:07.5]} 23. bxc5 {[%clk 0:00:23.2]}
23... Nxf6 {[%clk 0:02:03.5]} 24. gxf6 {[%clk 0:00:20.1]} 24... Qxf6 {[%clk
0:02:04.4]} 25. cxb6 {[%clk 0:00:18.2]} 25... d5 {[%clk 0:02:00.2]} 26. exd5
{[%clk 0:00:14.6]} 26... Rxd5 {[%clk 0:02:01.1]} 27. f4 {[%clk 0:00:10.4]} 27...
exf4 {[%clk 0:02:00.4]} 28. Rf1 {[%clk 0:00:06.3]} 28... Re8 {[%clk 0:01:54.9]}
29. Nxf4 {[%clk 0:00:05.5]} 29... Nxf4 {[%clk 0:01:55.2]} 30. Qxf4 {[%clk
0:00:04.7]} 30... Re2+ {[%clk 0:01:55.8]} 0-1